bitfinex/quotes_ETHUSD_20220226
["timestamp","ask_amount","ask_price","bid_price","bid_amount"]
[1645843015949,0.00556294,2805.8,2805.7,1.425]
[1645843016151,3.997,2807.1,2805.7,0.425]
[1645843016349,0.0055628,2805.9,2805.7,0.425]
[1645843017257,1.0,2806.9,2805.7,0.425]
[1645843017258,0.497,2807.1,2805.7,0.425]
[1645843017454,1.50649116,2807.0,2805.8,1.41393642]
[1645843017654,0.00556273,2805.9,2805.7,0.425]
[1645843018454,0.1424,2807.0,2805.7,0.425]
[1645843018656,2.8641812,2806.9,2805.7,0.425]
[1645843018895,0.00556273,2805.9,2805.7,0.425]
[1645843019692,1.497,2807.0,2805.7,0.425]
[1645843019693,0.497,2807.0,2805.7,0.425]
[1645843019897,0.00556273,2805.9,2805.7,0.425]
[1645843020900,1.8560962,2807.0,2805.7,0.425]
[1645843021101,0.00556273,2805.9,2805.7,0.425]
[1645843021904,0.00556273,2805.9,2805.7,11.255]
[1645843022104,0.1424,2807.0,2805.7,11.255]
[1645843022642,0.00556273,2805.9,2805.7,11.255]
[1645843023433,0.00556273,2805.9,2805.7,12.64193853]
[1645843023634,0.00556273,2805.9,2805.7,11.255]
[1645843024535,1.62141487,2807.0,2805.7,11.255]
[1645843024736,0.00556273,2805.9,2805.7,11.255]
[1645843025440,0.00556273,2805.9,2805.8,10.83]
[1645843025636,6.273e-05,2805.9,2805.8,11.46355592]
[1645843025836,8.05916753,2807.5,2805.8,13.62725592]
[1645843026034,8.05916753,2807.5,2806.3,10.83]
[1645843026035,1.50633477,2807.4,2806.3,10.83]
[1645843026239,0.02224702,2806.4,2806.3,10.83]
[1645843026489,0.02224702,2806.4,2806.3,11.255]
[1645843026993,4.91376753,2807.5,2806.3,11.255]
[1645843027190,1.50626748,2807.4,2806.3,11.255]
[1645843028593,1.86086748,2807.4,2806.3,11.255]
[1645843028793,0.3546,2807.4,2806.3,11.255]
[1645843029595,0.00556131,2807.0,2806.3,11.255]
[1645843030552,4.41676753,2807.5,2806.3,11.255]
[1645843030849,0.00556158,2806.8,2806.3,11.255]
[1645843031046,0.00556158,2806.8,2806.3,11.45788924]
[1645843031249,0.00556158,2806.8,2806.3,11.255]
[1645843031657,4.55916753,2807.5,2806.3,11.255]
[1645843031854,1.50626731,2807.4,2806.3,11.255]
[1645843032054,0.00556172,2806.7,2806.3,11.46185794]
[1645843032257,0.00556172,2806.7,2806.3,11.255]
[1645843032457,0.00556172,2806.7,2806.3,11.441833]
[1645843032661,0.00556172,2806.7,2806.3,11.255]
[1645843032857,4.41676753,2807.5,2806.3,11.46087369]
[1645843033057,1.50626908,2807.4,2806.3,11.255]
[1645843033259,0.00556179,2806.6,2806.3,11.40544811]
[1645843033459,0.00556179,2806.6,2806.3,11.255]
[1645843033658,0.00556179,2806.6,2806.3,11.45252189]
[1645843033885,0.00556179,2806.6,2806.3,11.255]
[1645843034087,4.55916753,2807.5,2806.3,11.79431382]
[1645843034387,0.00556185,2806.6,2806.3,11.97003454]
[1645843035387,4.41676753,2807.5,2806.3,11.92003454]
[1645843035591,0.00556185,2806.6,2806.3,11.92003454]
[1645843036592,4.41676753,2807.5,2806.3,11.92003454]
[1645843036793,0.00556185,2806.6,2806.3,11.92003454]
[1645843037633,4.41676753,2807.5,2806.3,11.92003454]
[1645843038033,0.00556185,2806.6,2806.3,11.92003454]
[1645843038936,4.41676753,2807.5,2806.3,11.92003454]
[1645843039136,0.00176407,2806.6,2806.3,11.92003454]
[1645843040135,4.41676753,2807.5,2806.3,11.92003454]
[1645843040337,0.00176407,2806.6,2806.3,11.92003454]
[1645843041384,4.41676753,2807.5,2806.3,11.92003454]
[1645843041590,0.00556557,2806.6,2806.3,11.92003454]
[1645843041987,0.00556557,2806.6,2806.3,12.92003454]
[1645843042592,4.41676753,2807.5,2806.3,12.92003454]
[1645843042793,0.00556557,2806.6,2806.3,11.92003454]
[1645843043788,4.41676753,2807.5,2806.3,11.92003454]
[1645843043988,0.00556557,2806.6,2806.3,11.92003454]
[1645843044390,0.00556557,2806.6,2805.9,4.99425]
[1645843044590,0.00556557,2806.6,2805.9,3.2127]
[1645843044788,0.00556557,2806.6,2805.8,1.1637]
[1645843044988,0.3546,2806.9,2805.8,1.1637]
[1645843045255,0.00556584,2806.4,2805.8,1.1637]
[1645843046053,0.02226002,2806.8,2805.8,1.1637]
[1645843046254,3.8546,2806.8,2805.8,1.1637]
[1645843046460,0.00556604,2806.2,2805.8,1.1637]
[1645843047660,0.00556618,2806.1,2805.8,1.1637]
[1645843048560,0.1424,2806.7,2805.8,1.1637]
[1645843048760,0.00486691,2806.1,2805.8,1.1637]
[1645843048991,0.00486691,2806.1,2805.5,0.77599414]
[1645843049189,0.00486691,2806.1,2805.5,0.52599414]
[1645843049791,0.00486691,2806.1,2805.5,0.95099414]
[1645843049991,0.00486673,2806.0,2805.5,0.95099414]
[1645843050591,0.00486673,2806.0,2805.6,10.83]
[1645843050795,0.00486673,2806.0,2805.8,1.22624153]
[1645843051193,0.00486665,2806.0,2805.8,1.22624153]
[1645843051392,0.00486665,2806.0,2805.6,11.255]
[1645843051998,0.00486665,2806.0,2805.7,10.83]
[1645843052298,3.0723,2807.2,2805.9,10.83]
[1645843052497,3.0723,2807.2,2805.9,11.00716923]
[1645843052498,0.00532752,2806.0,2805.9,11.00716923]
[1645843052749,0.00532752,2806.0,2805.9,11.43216923]
[1645843053151,0.00532752,2806.0,2805.9,12.64652601]
[1645843053351,0.00532752,2806.0,2805.9,1.81652601]
[1645843053749,0.00532771,2806.1,2805.9,1.81652601]
[1645843053950,0.00532771,2806.1,2806.0,10.83]
[1645843054151,0.00532771,2806.1,2806.0,11.255]
[1645843054551,3.0723,2807.2,2806.0,11.255]
[1645843054758,1.50636543,2807.1,2806.0,11.255]
[1645843054951,1.50636543,2807.1,2806.0,11.41375728]
[1645843054952,0.00532771,2806.2,2806.0,11.41375728]
[1645843055957,0.02130766,2806.6,2806.0,11.41375728]
[1645843056157,6.604e-05,2806.2,2806.1,10.83]
[1645843056395,0.02226084,2806.7,2806.4,10.83]
[1645843056597,0.02226084,2806.7,2806.6,10.83]
[1645843056798,0.02226084,2806.7,2806.6,11.555]
[1645843056997,0.00336605,2808.0,2806.7,0.15859239]
[1645843057197,1.45937414,2808.0,2806.9,10.83]
[1645843057400,1.45937414,2808.0,2807.1,10.83]
[1645843057596,1.45937414,2808.0,2807.2,12.14547]
[1645843057796,1.45937414,2808.0,2807.3,0.425]
[1645843058196,0.66461731,2808.3,2807.3,0.425]
[1645843058397,4.37818344,2808.6,2807.3,0.425]
[1645843058398,11.4351,2808.7,2807.3,11.555]
[1645843058602,0.5,2808.8,2807.6,10.83]
[1645843058799,0.5,2808.8,2807.8,10.83]
[1645843058998,0.5,2808.8,2808.0,10.83]
[1645843059196,0.5,2808.8,2808.1,0.425]
[1645843059397,0.5,2808.8,2808.2,11.95006168]
[1645843059598,0.5,2808.8,2808.3,0.425]
[1645843059799,0.00174032,2808.4,2808.3,0.62399937]
[1645843059997,0.00174032,2808.4,2808.3,0.425]
[1645843060262,0.00174032,2808.4,2808.3,0.58802715]
[1645843060462,0.00174032,2808.4,2808.3,11.255]
[1645843060668,0.00174032,2808.4,2808.3,0.425]
[1645843060863,0.00696024,2808.9,2808.3,0.425]
[1645843060864,0.00556377,2808.5,2808.3,0.425]
[1645843061670,0.3546,2809.5,2808.3,0.425]
[1645843061671,4.51921731,2809.5,2808.3,0.425]
[1645843061868,0.3546,2809.5,2808.3,0.425]
[1645843062071,0.0055637,2808.5,2808.3,0.425]
[1645843063069,0.1424,2809.3,2808.3,0.425]
[1645843063270,0.0055637,2808.5,2808.3,0.425]
[1645843063669,0.0055637,2808.5,2808.3,1.65452204]
[1645843064192,0.00335109,2809.2,2808.3,1.65452204]
[1645843064392,0.00537316,2808.5,2808.3,1.65452204]
[1645843064590,0.00537316,2808.5,2808.3,0.425]
[1645843065590,0.00335109,2809.2,2808.3,0.425]
[1645843065791,0.00537316,2808.5,2808.3,0.425]
[1645843066596,0.00335109,2809.2,2808.3,0.425]
[1645843066797,0.00537316,2808.5,2808.3,0.425]
[1645843067740,4.64575109,2809.4,2808.3,0.425]
[1645843067741,3.64575109,2809.4,2808.3,0.425]
[1645843067943,3.64575109,2809.4,2808.3,0.60076315]
[1645843067944,0.00335109,2809.4,2808.3,0.60076315]
[1645843068140,0.00558185,2808.5,2808.3,0.425]
[1645843068537,3.031257,2809.5,2808.3,0.62590577]
[1645843068739,4.7124,2809.6,2808.3,0.425]
[1645843069137,3.8546,2809.5,2808.3,0.425]
[1645843069338,0.3546,2809.5,2808.3,0.725]
[1645843069540,4.3578,2809.6,2808.3,0.725]
[1645843069743,4.3578,2809.6,2808.3,0.91016422]
[1645843069941,4.3578,2809.6,2808.3,11.74016422]
[1645843070344,4.3578,2809.6,2809.0,0.3]
[1645843070541,4.3578,2809.6,2808.3,11.74016422]
[1645843070542,0.59999999,2808.7,2808.3,11.74016422]
[1645843070740,0.59999999,2808.7,2808.3,0.91016422]
[1645843070940,0.59999999,2808.7,2808.3,0.725]
[1645843072907,0.59999999,2808.7,2808.4,0.00557939]
[1645843073707,0.59999999,2808.7,2808.1,1.725]
[1645843073708,0.59999999,2808.7,2808.1,2.725]
[1645843073908,0.59999999,2808.7,2808.1,2.6152]
[1645843074111,0.59999999,2808.7,2808.4,0.00557933]
[1645843074911,0.59999999,2808.7,2808.2,1.2022707]
[1645843075138,0.59999999,2808.7,2808.3,0.64247093]
[1645843075342,0.59999999,2808.7,2808.4,0.00557933]
[1645843076139,0.59999999,2808.7,2808.3,0.3]
[1645843076445,0.59999999,2808.7,2808.4,0.00557512]
[1645843079096,0.59999999,2808.7,2808.5,0.425]
[1645843079296,0.59999999,2808.7,2808.6,1.5187701]
[1645843079491,0.59999999,2808.7,2808.6,1.9437701]
[1645843080294,0.59999999,2808.7,2808.6,0.63101234]
[1645843080895,0.59999999,2808.7,2808.6,0.425]
[1645843081299,0.59999999,2808.7,2808.6,1.70459849]
[1645843081901,0.00143416,2809.1,2808.6,1.70459849]
[1645843081902,0.00143416,2809.1,2808.7,0.8899]
[1645843082098,0.00333507,2809.8,2808.8,0.425]
[1645843082299,1.50827377,2810.0,2808.8,0.58962018]
[1645843082498,1.50827377,2810.0,2808.8,0.88962018]
[1645843082499,0.00143416,2809.1,2808.8,0.88962018]
[1645843082740,0.00143416,2809.1,2808.9,11.02661556]
[1645843082940,0.00143416,2809.1,2809.0,0.425]
[1645843083142,0.00143416,2809.1,2809.0,0.5954335]
[1645843083340,0.00333507,2810.0,2809.0,11.4254335]
[1645843083540,1.50829826,2810.0,2809.0,11.4254335]
[1645843083741,0.00555581,2809.2,2809.0,11.4254335]
[1645843083940,0.00555581,2809.2,2809.1,10.83]
[1645843084140,0.00555581,2809.2,2809.1,11.01554047]
[1645843084342,0.00555581,2809.2,2809.1,1.63067413]
[1645843084743,0.00555581,2809.2,2809.1,12.46067413]
[1645843085043,0.00555567,2809.3,2809.1,12.46067413]
[1645843085742,3.50333507,2810.0,2809.1,12.46067413]
[1645843085943,0.00333507,2810.0,2809.1,12.46067413]
[1645843086243,0.0055556,2809.3,2809.1,12.46067413]
[1645843086993,0.00333507,2810.0,2809.1,12.46067413]
[1645843087196,0.00518085,2809.3,2809.1,12.46067413]
[1645843088193,0.00333507,2810.0,2809.1,12.46067413]
[1645843088393,0.00518085,2809.3,2809.1,12.46067413]
[1645843090640,0.00333507,2810.0,2809.1,12.46067413]
[1645843090840,0.00482741,2809.3,2809.1,12.46067413]
[1645843091446,0.00482741,2809.3,2809.1,11.44054047]
[1645843091846,0.00333507,2810.0,2809.1,11.44054047]
[1645843092045,0.00482741,2809.3,2809.1,11.44054047]
[1645843093047,0.00333507,2810.0,2809.1,11.44054047]
[1645843093247,0.00145242,2809.3,2809.1,11.44054047]
[1645843094190,0.00333507,2810.0,2809.1,11.44054047]
[1645843094392,0.0017228,2809.3,2809.1,11.44054047]
[1645843095291,0.00333507,2810.0,2809.1,11.44054047]
[1645843095690,0.00558627,2809.3,2809.1,11.44054047]
[1645843096902,0.00558627,2809.3,2809.1,12.44054047]
[1645843097102,0.00558627,2809.3,2809.1,14.55803047]
[1645843097498,0.00558627,2809.3,2809.1,1.84680774]
[1645843097748,7.85943507,2810.7,2809.1,1.6527]
[1645843097749,0.01280215,2810.1,2809.1,1.6527]
[1645843097946,0.3546,2810.0,2809.1,1.6527]
[1645843098146,0.35793507,2810.0,2809.1,1.6527]
[1645843098345,0.00333507,2810.0,2809.1,1.6527]
[1645843098545,0.01280215,2810.1,2809.1,1.6527]
[1645843098746,0.3546,2810.2,2809.1,1.6527]
[1645843098945,0.00333507,2810.1,2809.1,1.6527]
[1645843099245,0.3546,2810.0,2809.1,1.6527]
[1645843099545,0.35793507,2810.0,2809.1,1.6527]
[1645843099744,0.3546,2810.0,2809.1,1.6527]
[1645843100146,0.3546,2809.9,2809.1,1.6527]
[1645843101149,0.3546,2809.8,2809.1,1.6527]
[1645843101595,0.00558106,2809.6,2809.1,1.6527]
[1645843102199,0.00558106,2809.6,2808.9,0.00558261]
[1645843102700,0.3046,2809.1,2808.9,0.00558261]
[1645843102903,3.8046,2809.1,2808.3,0.25]
[1645843103100,3.8046,2809.1,2808.9,0.00558246]
[1645843103101,4.25033507,2809.1,2808.9,0.00558246]
[1645843103300,0.01116491,2808.6,2807.8,0.52370608]
[1645843103700,0.01116491,2808.6,2807.5,5.58619626]
[1645843104829,0.01116491,2808.6,2807.5,5.08619626]
[1645843105460,0.31576491,2808.6,2807.9,0.00386543]
[1645843106260,0.31576491,2808.6,2807.5,5.08619626]
[1645843106464,0.01116491,2808.6,2808.1,0.00558333]
[1645843106767,0.01116491,2808.6,2808.1,8.333e-05]
[1645843106968,0.3046,2808.2,2808.1,8.333e-05]
[1645843107169,5.31005797,2808.2,2808.1,8.333e-05]
[1645843107366,5.75245797,2808.2,2806.9,0.25]
[1645843107565,0.3046,2808.0,2806.3,4.294]
[1645843107766,0.1424,2807.9,2806.3,3.794]
[1645843108365,0.1424,2807.9,2806.4,0.63787003]
[1645843108765,3.8046,2808.0,2806.4,0.63787003]
[1645843108766,1.25132274,2807.6,2806.4,0.63787003]
[1645843109915,4.8046,2808.0,2806.4,0.63787003]
[1645843110116,4.8046,2808.0,2806.9,0.00385436]
[1645843110315,1.3046,2808.0,2806.9,0.00385436]
[1645843110521,0.3046,2807.8,2806.9,0.00385436]
[1645843110715,0.3046,2807.8,2806.4,0.14172439]
[1645843110917,1.20474228,2807.5,2806.4,0.14172439]
[1645843111118,1.50934228,2807.5,2806.4,0.14172439]
[1645843111317,0.3046,2807.3,2806.2,7.45]
[1645843111521,0.3046,2807.3,2806.1,3.0082]
[1645843111719,0.3046,2807.3,2806.0,4.22901192]
[1645843112119,1.20863944,2807.0,2806.0,4.22901192]
[1645843112319,0.3046,2807.5,2806.0,4.52901192]
[1645843112946,0.1424,2807.4,2806.0,4.52901192]
[1645843113150,0.3046,2807.3,2806.0,4.52901192]
[1645843113747,0.3046,2807.3,2806.0,3.699]
[1645843113949,1.60890495,2807.1,2806.0,3.699]
[1645843114950,1.60890495,2807.1,2806.4,0.00557888]
[1645843115753,0.3046,2806.9,2806.4,0.00557888]
[1645843116151,0.3046,2806.9,2805.8,0.2055786]
[1645843116411,1.1424,2807.3,2805.8,11.0355786]
[1645843116614,0.1424,2807.5,2805.8,12.02515116]
[1645843116815,1.1424,2807.5,2805.9,11.13]
[1645843117014,0.1424,2807.5,2805.9,11.74237041]
[1645843117417,1.196,2807.6,2806.5,10.83]
[1645843117617,8.72182163,2807.7,2806.5,11.255]
[1645843117618,7.6837,2807.7,2806.5,11.255]
[1645843117814,7.5413,2807.7,2806.6,10.83]
[1645843118014,7.5413,2807.7,2806.6,11.255]
[1645843119416,7.5413,2807.7,2806.6,12.3096313]
[1645843119616,7.5413,2807.7,2806.6,13.6096313]
[1645843119817,7.56360664,2807.7,2806.7,0.17631617]
[1645843120645,4.2737,2807.7,2806.7,0.17631617]
[1645843124506,4.2737,2807.7,2806.6,11.92196617]
[1645843124704,4.2737,2807.7,2806.6,12.62196617]
[1645843124909,0.02228959,2807.8,2806.7,0.89053]
[1645843125112,0.02228959,2807.8,2806.9,11.72051]
[1645843125309,0.02228959,2807.8,2807.0,0.59655359]
[1645843125509,3.1778,2808.1,2807.0,11.42655359]
[1645843125510,3.3202,2808.1,2807.0,11.42655359]
[1645843125708,0.02228932,2807.8,2807.0,0.59655359]
[1645843126111,0.02228932,2807.8,2807.0,1.89933908]
[1645843126315,0.02228932,2807.8,2807.1,10.98608259]
[1645843126911,0.13819997,2808.2,2807.1,10.83]
[1645843127112,0.00557219,2807.9,2807.1,10.83]
[1645843127313,0.00557219,2807.9,2807.1,0.19198147]
[1645843127515,0.00557219,2807.9,2807.0,11.77057751]
[1645843127749,0.00557219,2807.9,2807.1,0.21373949]
[1645843128147,0.00557226,2807.9,2807.2,10.83]
[1645843128349,0.00557226,2807.9,2807.2,0.58563208]
[1645843128551,0.00557226,2807.9,2807.2,11.41563208]
[1645843129150,0.00557226,2807.9,2807.2,0.58563208]
[1645843129351,0.00476238,2807.9,2807.2,0.58563208]
[1645843129650,0.00476238,2807.9,2807.3,11.01244105]
[1645843130050,0.00476238,2807.9,2807.3,0.18244105]
[1645843130251,0.28059997,2808.2,2807.2,0.59974561]
[1645843130454,0.13819997,2808.2,2807.2,11.42974561]
[1645843130752,0.00476246,2807.9,2807.2,11.42974561]
[1645843130952,0.00476246,2807.9,2807.2,0.425]
[1645843131802,0.00476238,2807.9,2807.2,0.425]
[1645843132003,0.00476238,2807.9,2807.2,4.18889296]
[1645843132203,0.00476238,2807.9,2807.2,5.48889296]
[1645843132405,0.00476238,2807.9,2807.2,5.78042774]
[1645843132702,0.00476238,2807.9,2807.3,12.24699671]
[1645843132902,0.00476238,2807.9,2807.5,10.83]
[1645843133102,0.00491787,2807.9,2807.6,0.62890593]
[1645843133703,0.00491787,2807.9,2807.6,0.425]
[1645843133904,0.01116491,2808.6,2807.6,0.425]
[1645843134307,0.01116491,2808.6,2807.7,10.83]
[1645843134308,0.00491822,2807.9,2807.7,10.83]
[1645843134511,0.00491822,2807.9,2807.8,0.425]
[1645843135349,0.01116491,2808.6,2807.8,0.425]
[1645843135549,0.00491829,2808.0,2807.8,0.425]
[1645843135751,0.00491829,2808.0,2807.6,1.78046]
[1645843136351,0.51149998,2808.6,2807.6,1.78046]
[1645843136352,0.36909998,2808.6,2807.6,1.78046]
[1645843136551,0.00493074,2807.9,2807.6,1.78046]
[1645843137453,0.36909998,2808.6,2807.5,0.89022]
[1645843137654,0.1424,2808.5,2807.5,0.89022]
[1645843137853,0.00493068,2807.9,2807.5,0.89022]
[1645843138656,0.01116491,2808.6,2807.6,0.425]
[1645843139099,0.00493059,2807.9,2807.6,0.425]
[1645843139700,0.00493059,2807.9,2807.7,10.83]
[1645843139899,0.00493059,2807.9,2807.7,0.1776871]
[1645843140100,0.00556835,2807.9,2807.6,11.43844478]
[1645843140500,0.00556835,2807.9,2807.6,11.255]
[1645843140903,0.00556835,2807.9,2807.6,0.425]
[1645843141100,0.01116491,2808.6,2807.6,0.425]
[1645843141300,0.00556835,2807.9,2807.6,0.425]
[1645843142401,0.01116491,2808.6,2807.6,0.425]
[1645843142669,0.00556835,2807.9,2807.6,0.425]
[1645843143456,0.01116491,2808.6,2807.6,0.425]
[1645843143856,0.00557241,2807.9,2807.7,10.83]
[1645843144256,0.00557241,2807.9,2807.8,0.425]
[1645843144457,0.00557241,2807.9,2807.8,11.255]
[1645843144662,0.01116491,2808.6,2807.8,11.44728391]
[1645843144858,0.01116491,2808.6,2807.9,0.89025]
[1645843145058,0.00557234,2808.0,2807.9,1.47712721]
[1645843145257,0.00557234,2808.0,2807.9,2.07712721]
[1645843145458,0.00557234,2808.0,2807.9,2.06831237]
[1645843145657,0.00557234,2808.0,2807.9,1.91525]
[1645843145856,0.01116491,2808.6,2807.9,1.91525]
[1645843146059,0.01116491,2808.6,2807.9,1.31525]
[1645843146262,0.00557221,2808.1,2807.9,1.31525]
[1645843146904,0.00557221,2808.1,2807.9,1.51385942]
[1645843147310,0.00557221,2808.1,2807.9,1.31525]
[1645843147311,0.01114435,2808.1,2807.9,1.31525]
[1645843147507,0.00557214,2808.1,2807.9,1.31525]
[1645843147907,0.00557214,2808.1,2807.9,1.51919045]
[1645843148108,0.00557214,2808.1,2807.9,1.31525]
[1645843148309,0.01116491,2808.6,2807.9,1.31525]
[1645843148709,0.00557214,2808.1,2807.9,12.14525]
[1645843148912,0.00557214,2808.1,2807.9,12.36009803]
[1645843149109,0.00557214,2808.1,2807.9,12.44525]
[1645843149310,0.00557214,2808.1,2808.0,10.83]
[1645843149512,0.00557214,2808.1,2808.0,11.41759908]
[1645843149912,0.00557214,2808.1,2808.0,0.61417662]
[1645843150351,0.00557214,2808.1,2808.0,11.44417662]
[1645843150656,0.01116491,2808.6,2808.0,11.44417662]
[1645843150850,0.01116491,2808.6,2808.0,0.61417662]
[1645843151051,0.00476274,2808.2,2808.0,0.61417662]
[1645843151458,0.00476274,2808.2,2808.0,0.425]
[1645843151858,0.03021303,2808.6,2808.0,0.425]
[1645843152257,0.00476274,2808.2,2808.0,0.425]
[1645843153058,0.01116491,2808.6,2808.0,0.425]
[1645843153459,0.00476274,2808.2,2808.0,11.255]
[1645843153662,0.00476274,2808.2,2808.0,13.92541]
[1645843153900,0.00476274,2808.2,2808.0,14.38396833]
[1645843154103,0.00476274,2808.2,2808.1,0.15742976]
[1645843154301,0.00476274,2808.2,2808.1,0.58242976]
[1645843154703,0.00556809,2808.2,2808.1,0.58242976]
[1645843154902,0.00556809,2808.2,2808.1,11.41242976]
[1645843155606,0.01116491,2808.6,2808.1,11.41242976]
[1645843155808,0.00556802,2808.3,2808.1,11.41242976]
[1645843156709,0.01116491,2808.6,2808.1,11.41242976]
[1645843156910,0.00556795,2808.3,2808.1,11.41242976]
[1645843157758,0.00556795,2808.3,2808.1,11.95352368]
[1645843157956,0.01116491,2808.6,2808.1,11.95352368]
[1645843158159,0.01116491,2808.6,2808.3,10.83]
[1645843158461,0.01116491,2808.6,2808.5,10.83]
[1645843158657,0.01116491,2808.6,2808.5,11.43280192]
[1645843159155,0.01116491,2808.6,2808.5,12.68114184]
[1645843162800,0.01116491,2808.6,2808.5,11.43280192]
[1645843168060,0.01116491,2808.6,2808.5,12.43280192]
[1645843168463,0.01116491,2808.6,2808.5,12.555]
[1645843168896,0.01012227,2808.6,2808.5,12.555]
[1645843169298,0.01012227,2808.6,2808.5,13.555]
[1645843169707,0.0053934,2808.7,2808.5,13.555]
[1645843169900,0.00333507,2809.8,2808.6,12.005]
[1645843170101,0.00333507,2810.0,2809.0,10.83]
[1645843170300,0.00333507,2810.0,2809.0,11.555]
[1645843170301,0.02170437,2809.1,2809.0,11.555]
[1645843170702,0.00333507,2810.0,2809.0,11.555]
[1645843170908,0.00333507,2810.0,2809.0,12.555]
[1645843171101,0.00333507,2810.1,2809.0,12.555]
[1645843171300,0.00333507,2810.2,2809.4,10.83]
[1645843171503,0.00333507,2810.2,2809.6,10.83]
[1645843171704,0.00333507,2810.2,2809.6,11.255]
[1645843171904,0.00333507,2810.5,2809.6,11.555]
[1645843172106,1.50435252,2810.7,2809.6,11.555]
[1645843172107,1.50435252,2810.6,2809.6,11.555]
[1645843172306,0.00333507,2810.5,2809.8,10.83]
[1645843172503,7.7376,2810.9,2809.7,1.77919]
[1645843172504,1.50762375,2810.8,2809.9,11.255]
[1645843172752,0.00171554,2810.2,2809.9,11.255]
[1645843172952,0.00171554,2810.2,2810.0,1.16393903]
[1645843173755,0.00533325,2810.2,2810.0,1.16393903]
[1645843174157,0.00533325,2810.2,2810.1,11.255]
[1645843175055,0.00533325,2810.3,2810.1,11.255]
[1645843175255,0.00533325,2810.3,2810.2,14.38748]
[1645843175457,0.00533325,2810.3,2810.2,14.81248]
[1645843176063,0.00333507,2811.3,2810.2,14.81248]
[1645843176261,0.00161678,2810.4,2810.3,0.3]
[1645843176504,0.00161678,2810.4,2810.3,11.555]
[1645843177007,0.00161678,2810.4,2810.3,12.555]
[1645843177204,0.00333507,2811.3,2810.3,12.555]
[1645843177405,0.00161678,2810.5,2810.3,12.555]
[1645843177606,0.00161678,2810.5,2810.3,1.725]
[1645843177806,0.00161678,2810.5,2810.3,12.555]
[1645843178007,0.00161678,2810.5,2810.3,12.55391378]
[1645843178207,0.00161678,2810.5,2810.4,11.71936]
[1645843178408,0.00333507,2811.3,2810.4,12.14436]
[1645843178610,0.00333507,2811.3,2810.4,12.33308049]
[1645843178611,0.00559505,2810.5,2810.4,12.33308049]
[1645843178912,0.00559505,2810.5,2810.3,1.0]
[1645843179110,0.00559505,2810.5,2809.9,0.52331228]
[1645843179408,0.00559505,2810.5,2809.7,3.59728622]
[1645843179808,0.00333507,2810.7,2809.7,3.59728622]
[1645843180008,0.00559532,2810.3,2809.7,3.34728622]
[1645843180259,0.00559532,2810.3,2809.7,3.1837]
[1645843180858,0.00333507,2810.7,2809.6,1.156]
[1645843181161,0.0055956,2810.1,2809.6,1.156]
[1645843181464,0.0055956,2810.1,2809.6,1.456]
[1645843182063,0.00333507,2810.7,2809.6,1.456]
[1645843182267,0.00559161,2810.0,2809.6,2.88293921]
[1645843182462,0.00559161,2810.0,2809.6,1.456]
[1645843183064,0.00559161,2810.0,2809.6,1.156]
[1645843183264,0.14563507,2810.7,2809.6,1.156]
[1645843183564,0.00559168,2809.9,2809.6,1.156]
[1645843183766,0.00559168,2809.9,2809.6,11.986]
[1645843184206,0.00559168,2809.9,2809.6,1.156]
[1645843184407,0.02236335,2810.4,2809.6,1.156]
[1645843184408,0.14563507,2810.9,2809.6,1.156]
[1645843184607,0.00559174,2809.9,2809.6,1.156]
[1645843185010,0.00559174,2809.9,2809.6,11.986]
[1645843185509,0.3546,2810.7,2809.6,1.156]
[1645843185709,0.00333507,2810.6,2809.6,1.156]
[1645843185909,0.00559595,2809.9,2809.6,1.156]
[1645843186515,0.00559595,2809.9,2809.6,11.986]
[1645843186815,0.14563507,2810.9,2809.6,12.18504991]
[1645843187016,0.00559595,2809.9,2809.6,12.61004991]
[1645843187214,0.00559595,2809.9,2809.7,10.83]
[1645843187415,0.00559595,2809.9,2809.8,11.43383436]
[1645843188071,0.35793507,2811.1,2810.2,1.42053068]
[1645843188273,0.02237988,2810.4,2810.2,1.42053068]
[1645843188575,0.02237988,2810.4,2810.3,11.40732741]
[1645843188877,0.02237988,2810.4,2810.3,12.54962741]
[1645843189271,0.02237988,2810.4,2810.3,12.40732741]
[1645843189472,0.00333507,2811.3,2810.3,12.40732741]
[1645843189674,0.00333507,2811.3,2810.6,0.88939]
[1645843190074,4.87209997,2811.5,2810.6,0.88939]
[1645843190273,0.00333507,2811.4,2810.6,0.88939]
[1645843190477,0.00333507,2811.4,2810.5,0.425]
[1645843193112,0.00533593,2811.1,2810.5,0.425]
[1645843193908,0.00333507,2811.4,2810.5,0.425]
[1645843194311,0.00476365,2810.9,2810.5,0.425]
[1645843195155,0.02238683,2811.4,2810.5,0.425]
[1645843195156,0.00333507,2811.4,2810.5,0.425]
[1645843195555,0.00476365,2810.8,2810.5,0.425]
[1645843195953,0.00476365,2810.8,2810.6,0.88937]
[1645843196155,0.00476365,2810.8,2810.6,1.31437]
[1645843196462,0.00333507,2811.4,2810.6,1.31437]
[1645843196665,0.00476365,2810.8,2810.6,1.31437]
[1645843197061,0.00476365,2810.8,2810.6,0.425]
[1645843197663,0.00333507,2811.4,2810.7,0.88936]
[1645843197863,0.00476365,2810.8,2810.7,0.88936]
[1645843198907,0.39886156,2811.6,2810.7,2.00253274]
[1645843199107,0.39886156,2811.6,2810.8,11.255]
[1645843199108,0.00485906,2810.9,2810.8,11.255]
[1645843199311,0.00485906,2810.9,2810.8,11.46329811]
[1645843199908,0.04035807,2811.5,2810.8,11.46329811]
[1645843200113,0.04035807,2811.5,2810.8,13.24177811]
[1645843200310,0.00485906,2811.0,2810.8,13.24177811]
[1645843201111,0.04035807,2811.5,2810.8,13.24177811]
[1645843201415,0.00485906,2811.0,2810.8,13.24177811]
[1645843202220,0.00485906,2811.0,2810.8,14.24177811]
[1645843202416,0.05979138,2811.5,2810.8,14.24177811]
[1645843202417,0.04035807,2811.5,2810.8,14.24177811]
[1645843202670,0.00484716,2811.0,2810.8,14.24177811]
[1645843203658,0.05842238,2811.5,2810.8,2.41177811]
[1645843203659,0.03903663,2811.5,2810.8,2.41177811]
[1645843203860,0.00484716,2811.0,2810.8,2.41177811]
[1645843204160,0.00484716,2811.0,2810.8,3.56713518]
[1645843204363,0.00484716,2811.0,2810.8,1.5729]